[Event "2026 European Womens Championship"]
[Site "Batumi, GE"]
[Date "2026.05.27"]
[Round "3"]
[White "Khachatryan, Anna"]
[Black "Avetisyan, Ani"]
[Result "1/2-1/2"]
[Board "65"]
[TimeControl "5400+30"]
[WhiteFideId "13310780"]
[BlackFideId "13319035"]
[WhiteElo "2154"]
[BlackElo "2052"]
[WhiteTitle "WFM"]
[WhiteClock "0:02:33"]
[BlackClock "0:03:42"]
[Variant "Standard"]

1. e4 {[%clk 1:30:54]}  e5 {[%clk 1:30:56]} 2. Nc3 {[%clk 1:31:12]}  Nc6 {[%clk 1:31:09]} 3. g3 {[%clk 1:31:30]}  Nf6 {[%clk 1:30:07]}
4. Bg2 {[%clk 1:31:52]}  Bc5 {[%clk 1:23:54]} 5. d3 {[%clk 1:31:57]}  h6 {[%clk 1:22:55]} 6. Nge2 {[%clk 1:32:07]}  a5 {[%clk 1:21:15]}
7. O-O {[%clk 1:30:34]}  O-O {[%clk 1:20:55]} 8. h3 {[%clk 1:29:57]}  d6 {[%clk 1:18:48]} 9. Kh2 {[%clk 1:26:35]}  a4 {[%clk 1:06:24]}
10. a3 {[%clk 1:25:43]}  Bd7 {[%clk 1:02:09]} 11. f4 {[%clk 1:23:26]}  Nd4 {[%clk 1:01:09]} 12. f5 {[%clk 1:09:40]}  Nh7 {[%clk 0:56:08]}
13. Nxd4 {[%clk 0:48:04]}  Bxd4 {[%clk 0:56:18]} 14. Nd5 {[%clk 0:48:12]}  f6 {[%clk 0:47:56]} 15. h4 {[%clk 0:44:29]}  Be8 {[%clk 0:44:32]}
16. Bf3 {[%clk 0:42:02]}  c6 {[%clk 0:43:08]} 17. Ne3 {[%clk 0:33:50]}  Bf7 {[%clk 0:41:26]} 18. Qe2 {[%clk 0:24:41]}  d5 {[%clk 0:37:56]}
19. exd5 {[%clk 0:20:22]}  cxd5 {[%clk 0:38:05]} 20. Qg2 {[%clk 0:20:41]}  Ra5 {[%clk 0:36:03]} 21. c3 {[%clk 0:17:46]}  Bxe3 {[%clk 0:19:24]}
22. Bxe3 {[%clk 0:18:09]}  d4 {[%clk 0:19:53]} 23. cxd4 {[%clk 0:15:05]}  exd4 {[%clk 0:20:20]} 24. Bd2 {[%clk 0:13:49]}  Rxf5 {[%clk 0:18:56]}
25. Bxb7 {[%clk 0:13:24]}  Re5 {[%clk 0:14:30]} 26. Rae1 {[%clk 0:10:07]}  Bd5 {[%clk 0:12:47]} 27. Bxd5+ {[%clk 0:10:30]}  Qxd5 {[%clk 0:12:57]}
28. Qxd5+ {[%clk 0:09:38]}  Rxd5 {[%clk 0:13:24]} 29. Kg2 {[%clk 0:05:27]}  Rc8 {[%clk 0:13:18]} 30. Rc1 {[%clk 0:05:04]}  Rdc5 {[%clk 0:09:49]}
31. Rxc5 {[%clk 0:04:49]}  Rxc5 {[%clk 0:10:18]} 32. Rc1 {[%clk 0:02:28]}  Rxc1 {[%clk 0:08:56]} 33. Bxc1 {[%clk 0:02:57]}  f5 {[%clk 0:08:50]}
34. Bf4 {[%clk 0:01:00]}  Nf8 {[%clk 0:09:17]} 35. Be5 {[%clk 0:00:52]}  Ne6 {[%clk 0:09:45]} 36. Kf3 {[%clk 0:01:09]}  Kf7 {[%clk 0:09:07]}
37. Bd6 {[%clk 0:00:40]}  Kf6 {[%clk 0:06:29]} 38. Ke2 {[%clk 0:00:52]}  g5 {[%clk 0:06:28]} 39. hxg5+ {[%clk 0:00:42]}  hxg5 {[%clk 0:06:48]}
40. Kd2 {[%clk 0:00:41]}  f4 {[%clk 0:04:43]} 41. g4 {[%clk 0:21:53]}  f3 {[%clk 0:23:49]} 42. Ke1 {[%clk 0:14:55]}  Nf4 {[%clk 0:23:54]}
43. Kf2 {[%clk 0:15:21]}  Nxd3+ {[%clk 0:22:14]} 44. Kxf3 {[%clk 0:15:50]}  Ke6 {[%clk 0:20:47]} 45. Bf8 {[%clk 0:09:14]}  Kd5 {[%clk 0:16:56]}
46. Be7 {[%clk 0:09:21]}  Ne5+ {[%clk 0:12:37]} 47. Ke2 {[%clk 0:07:56]}  Kc4 {[%clk 0:09:41]} 48. Bxg5 {[%clk 0:05:35]}  Nxg4 {[%clk 0:10:07]}
49. Bf4 {[%clk 0:03:52]}  Nf6 {[%clk 0:09:59]} 50. Kd2 {[%clk 0:03:51]}  Ne4+ {[%clk 0:10:10]} 51. Kc2 {[%clk 0:04:03]}  d3+ {[%clk 0:08:57]}
52. Kc1 {[%clk 0:03:29]}  Kd4 {[%clk 0:08:35]} 53. Bh6 {[%clk 0:02:02]}  Nd6 {[%clk 0:08:57]} 54. Bg5 {[%clk 0:01:02]}  Nc4 {[%clk 0:08:51]}
55. Bh6 {[%clk 0:01:18]}  Ke4 {[%clk 0:09:14]} 56. Bg5 {[%clk 0:01:27]}  Kf3 {[%clk 0:09:27]} 57. Kd1 {[%clk 0:00:39]}  Nxb2+ {[%clk 0:06:58]}
58. Kd2 {[%clk 0:01:09]}  Ke4 {[%clk 0:07:10]} 59. Kc3 {[%clk 0:01:38]}  Nd1+ {[%clk 0:07:34]} 60. Kb4 {[%clk 0:00:41]}  Ne3 {[%clk 0:07:35]}
61. Kc3 {[%clk 0:01:06]}  Nc2 {[%clk 0:07:32]} 62. Bc1 {[%clk 0:00:58]}  Nd4 {[%clk 0:02:45]} 63. Kb4 {[%clk 0:00:45]}  Nb3 {[%clk 0:01:56]}
64. Bh6 {[%clk 0:01:03]}  Kd4 {[%clk 0:01:30]} 65. Kxa4 {[%clk 0:00:44]}  Kc4 {[%clk 0:01:56]} 66. Bg5 {[%clk 0:00:49]}  Nd4 {[%clk 0:01:59]}
67. Bd2 {[%clk 0:00:48]}  Nf3 {[%clk 0:02:16]} 68. Bh6 {[%clk 0:00:41]}  Ne1 {[%clk 0:01:28]} 69. Ka5 {[%clk 0:00:39]}  Kb3 {[%clk 0:01:24]}
70. a4 {[%clk 0:00:56]}  Nc2 {[%clk 0:01:49]} 71. Kb5 {[%clk 0:01:10]}  Na3+ {[%clk 0:01:42]} 72. Kc5 {[%clk 0:01:12]}  Kxa4 {[%clk 0:02:17]}
73. Kd4 {[%clk 0:01:38]}  Nb5 {[%clk 0:02:44]} 74. Kxd3 {[%clk 0:02:05]}  Nc3 {[%clk 0:03:13]} 75. Kxc3 {[%clk 0:02:33]}  Kb5 {[%clk 0:03:42]} 1/2-1/2

[Event "2026 European Womens Championship"]
[Site "Batumi, GE"]
[Date "2026.05.27"]
[Round "3"]
[White "Ptacnikova, Lenka"]
[Black "Khairova, Evelina"]
[Result "1-0"]
[Board "66"]
[TimeControl "5400+30"]
[WhiteFideId "305650"]
[BlackFideId "2845768"]
[WhiteElo "2126"]
[BlackElo "1880"]
[WhiteTitle "WGM"]
[WhiteClock "0:44:41"]
[BlackClock "0:27:25"]
[Variant "Standard"]

1. c4 {[%clk 1:30:58]}  e6 {[%clk 1:30:13]} 2. g3 {[%clk 1:30:59]}  Nf6 {[%clk 1:30:13]} 3. Bg2 {[%clk 1:31:06]}  d5 {[%clk 1:30:37]}
4. Nf3 {[%clk 1:31:21]}  dxc4 {[%clk 1:28:26]} 5. Qa4+ {[%clk 1:31:43]}  Bd7 {[%clk 1:28:50]} 6. Qxc4 {[%clk 1:31:49]}  c5 {[%clk 1:29:14]}
7. Ne5 {[%clk 1:24:55]}  Qc8 {[%clk 1:29:40]} 8. Nxd7 {[%clk 1:15:46]}  Qxd7 {[%clk 1:29:59]} 9. Qc2 {[%clk 1:15:48]}  Nc6 {[%clk 1:28:22]}
10. Nc3 {[%clk 1:13:23]}  Nd4 {[%clk 1:17:27]} 11. Qd1 {[%clk 1:13:47]}  Rc8 {[%clk 1:14:47]} 12. d3 {[%clk 1:13:23]}  b5 {[%clk 1:08:04]}
13. O-O {[%clk 1:07:01]}  b4 {[%clk 0:59:25]} 14. Nb1 {[%clk 1:01:42]}  c4 {[%clk 0:49:32]} 15. dxc4 {[%clk 1:01:38]}  Rxc4 {[%clk 0:46:39]}
16. Nd2 {[%clk 1:01:19]}  Rc8 {[%clk 0:44:20]} 17. Nb3 {[%clk 0:58:34]}  Nxb3 {[%clk 0:40:39]} 18. Qxb3 {[%clk 0:54:50]}  a5 {[%clk 0:36:42]}
19. Rd1 {[%clk 0:48:13]}  a4 {[%clk 0:29:39]} 20. Rxd7 {[%clk 0:45:09]}  axb3 {[%clk 0:30:01]} 21. Rd1 {[%clk 0:45:23]}  Be7 {[%clk 0:13:08]}
22. axb3 {[%clk 0:45:03]}  O-O {[%clk 0:13:32]} 23. Bf4 {[%clk 0:42:31]}  Rc2 {[%clk 0:12:12]} 24. Rdc1 {[%clk 0:30:14]}  Rxb2 {[%clk 0:08:19]}
25. Ra7 {[%clk 0:30:15]}  Bd8 {[%clk 0:06:14]} 26. Bd6 {[%clk 0:30:13]}  Re8 {[%clk 0:05:52]} 27. Bc6 {[%clk 0:28:37]}  Bb6 {[%clk 0:05:15]}
28. Rb7 {[%clk 0:28:45]}  Rc8 {[%clk 0:04:24]} 29. Rxb6 {[%clk 0:28:35]}  Nd5 {[%clk 0:03:53]} 30. Rb8 {[%clk 0:26:53]}  Rxb8 {[%clk 0:03:51]}
31. Bxb8 {[%clk 0:27:22]}  Nc3 {[%clk 0:04:06]} 32. Bf3 {[%clk 0:27:21]}  Rxb3 {[%clk 0:01:46]} 33. Bd6 {[%clk 0:25:02]}  h6 {[%clk 0:01:19]}
34. Bxb4 {[%clk 0:23:06]}  Nxe2+ {[%clk 0:01:43]} 35. Bxe2 {[%clk 0:23:29]}  Rxb4 {[%clk 0:02:12]} 36. Rc7 {[%clk 0:22:17]}  Rb1+ {[%clk 0:02:24]}
37. Kg2 {[%clk 0:22:42]}  Rb2 {[%clk 0:02:23]} 38. Bh5 {[%clk 0:21:24]}  g6 {[%clk 0:02:21]} 39. Bd1 {[%clk 0:21:40]}  Rb4 {[%clk 0:02:17]}
40. Ra7 {[%clk 0:21:34]}  Rb1 {[%clk 0:01:59]} 41. Bc2 {[%clk 0:21:45]}  Rb2 {[%clk 0:02:07]} 42. Ba4 {[%clk 0:20:54]}  Ra2 {[%clk 0:02:32]}
43. Ra8+ {[%clk 0:21:13]}  Kg7 {[%clk 0:02:56]} 44. Bc6 {[%clk 0:21:36]}  Rc2 {[%clk 0:03:02]} 45. Be8 {[%clk 0:21:43]}  Rc7 {[%clk 0:03:28]}
46. Rd8 {[%clk 0:22:02]}  Re7 {[%clk 0:03:32]} 47. Bd7 {[%clk 0:22:07]}  Kf6 {[%clk 0:03:21]} 48. Kf3 {[%clk 0:22:25]}  Ke5 {[%clk 0:30:18]}
49. Ke3 {[%clk 0:52:24]}  h5 {[%clk 0:29:38]} 50. f4+ {[%clk 0:50:46]}  Kf6 {[%clk 0:29:41]} 51. Ke4 {[%clk 0:50:15]}  g5 {[%clk 0:26:58]}
52. fxg5+ {[%clk 0:49:02]}  Kxg5 {[%clk 0:27:21]} 53. Ke5 {[%clk 0:46:20]}  Kg6 {[%clk 0:27:11]} 54. Kd6 {[%clk 0:45:47]}  Kf6 {[%clk 0:27:36]}
55. Ra8 {[%clk 0:44:36]}  e5 {[%clk 0:27:25]} 56. Ra1 {[%clk 0:44:41]} 1-0

[Event "2026 European Womens Championship"]
[Site "Batumi, GE"]
[Date "2026.05.27"]
[Round "3"]
[White "Ismayil, Malak"]
[Black "Chkhartishvili, Lika"]
[Result "1-0"]
[Board "67"]
[TimeControl "5400+30"]
[WhiteFideId "13412604"]
[BlackFideId "13635166"]
[WhiteElo "2122"]
[BlackElo "1822"]
[WhiteTitle "WIM"]
[WhiteClock "0:02:40"]
[BlackClock "0:07:50"]
[Variant "Standard"]

1. d4 {[%clk 1:30:51]}  d5 {[%clk 1:30:54]} 2. Nf3 {[%clk 1:31:17]}  Nf6 {[%clk 1:31:15]} 3. e3 {[%clk 1:31:43]}  c5 {[%clk 1:28:44]}
4. b3 {[%clk 1:31:44]}  Nc6 {[%clk 1:28:46]} 5. Bb2 {[%clk 1:31:55]}  cxd4 {[%clk 1:25:20]} 6. exd4 {[%clk 1:32:15]}  Bg4 {[%clk 1:25:32]}
7. Be2 {[%clk 1:31:22]}  e6 {[%clk 1:25:26]} 8. Nbd2 {[%clk 1:30:38]}  Bd6 {[%clk 1:22:59]} 9. O-O {[%clk 1:30:12]}  O-O {[%clk 1:23:21]}
10. Ne5 {[%clk 1:27:56]}  Bxe2 {[%clk 1:23:08]} 11. Qxe2 {[%clk 1:28:23]}  Nd7 {[%clk 1:10:40]} 12. f4 {[%clk 1:25:01]}  Ndxe5 {[%clk 1:03:44]}
13. fxe5 {[%clk 1:24:45]}  Be7 {[%clk 1:03:05]} 14. Nf3 {[%clk 0:42:28]}  Qd7 {[%clk 0:59:52]} 15. c4 {[%clk 0:30:18]}  f6 {[%clk 0:51:46]}
16. Rfe1 {[%clk 0:28:53]}  Bb4 {[%clk 0:45:20]} 17. Red1 {[%clk 0:29:10]}  fxe5 {[%clk 0:43:57]} 18. dxe5 {[%clk 0:29:15]}  Bc5+ {[%clk 0:43:06]}
19. Kh1 {[%clk 0:29:30]}  d4 {[%clk 0:41:29]} 20. a3 {[%clk 0:17:38]}  a5 {[%clk 0:39:08]} 21. Qe4 {[%clk 0:14:59]}  Rad8 {[%clk 0:37:37]}
22. Rd3 {[%clk 0:15:18]}  Qe7 {[%clk 0:36:16]} 23. Rad1 {[%clk 0:12:48]}  Qf7 {[%clk 0:27:20]} 24. h3 {[%clk 0:07:54]}  h6 {[%clk 0:24:11]}
25. Bxd4 {[%clk 0:01:51]}  Bxa3 {[%clk 0:23:11]} 26. Bb6 {[%clk 0:01:49]}  Rxd3 {[%clk 0:22:53]} 27. Rxd3 {[%clk 0:01:58]}  Bb4 {[%clk 0:21:27]}
28. Bg1 {[%clk 0:00:40]}  Qe7 {[%clk 0:19:03]} 29. Bf2 {[%clk 0:00:41]}  Qf7 {[%clk 0:16:48]} 30. Bb6 {[%clk 0:00:47]}  Re8 {[%clk 0:16:13]}
31. Kh2 {[%clk 0:00:34]}  Ba3 {[%clk 0:14:25]} 32. Nd4 {[%clk 0:00:38]}  Nxd4 {[%clk 0:13:44]} 33. Qxd4 {[%clk 0:01:04]}  Bb4 {[%clk 0:13:27]}
34. Rg3 {[%clk 0:01:02]}  Qe7 {[%clk 0:09:41]} 35. Qg4 {[%clk 0:01:12]}  Rf8 {[%clk 0:08:32]} 36. Qg6 {[%clk 0:00:37]}  Be1 {[%clk 0:07:44]}
37. Rg4 {[%clk 0:00:50]}  Bc3 {[%clk 0:07:06]} 38. Qxh6 {[%clk 0:00:33]}  Bxe5+ {[%clk 0:07:28]} 39. g3 {[%clk 0:00:39]}  Qd6 {[%clk 0:05:29]}
40. Qe3 {[%clk 0:00:39]}  Rf1 {[%clk 0:03:45]} 41. Bd4 {[%clk 0:25:33]}  Bxd4 {[%clk 0:32:36]} 42. Rxd4 {[%clk 0:24:28]}  Qe7 {[%clk 0:31:40]}
43. Qd3 {[%clk 0:17:58]}  Rf2+ {[%clk 0:30:07]} 44. Kg1 {[%clk 0:18:16]}  Rf8 {[%clk 0:30:14]} 45. Qe3 {[%clk 0:17:35]}  Qf6 {[%clk 0:29:07]}
46. Rd2 {[%clk 0:16:13]}  Qf1+ {[%clk 0:26:00]} 47. Kh2 {[%clk 0:16:38]}  Qf5 {[%clk 0:25:44]} 48. Re2 {[%clk 0:16:24]}  Rf6 {[%clk 0:25:22]}
49. g4 {[%clk 0:13:12]}  Qf3 {[%clk 0:22:41]} 50. g5 {[%clk 0:13:08]}  Qxe3 {[%clk 0:21:58]} 51. Rxe3 {[%clk 0:13:34]}  Rf2+ {[%clk 0:22:12]}
52. Kg3 {[%clk 0:13:49]}  Rb2 {[%clk 0:22:35]} 53. g6 {[%clk 0:12:32]}  Rb1 {[%clk 0:21:40]} 54. Kg4 {[%clk 0:09:40]}  Kf8 {[%clk 0:16:55]}
55. Rf3+ {[%clk 0:09:26]}  Kg8 {[%clk 0:16:22]} 56. h4 {[%clk 0:09:37]}  a4 {[%clk 0:13:14]} 57. bxa4 {[%clk 0:09:25]}  Rb4 {[%clk 0:13:37]}
58. Kg5 {[%clk 0:05:19]}  Rxc4 {[%clk 0:13:05]} 59. Rf4 {[%clk 0:04:23]}  Rc5+ {[%clk 0:12:41]} 60. Kg4 {[%clk 0:04:49]}  Rc1 {[%clk 0:12:52]}
61. Rb4 {[%clk 0:04:08]}  Rc7 {[%clk 0:12:21]} 62. h5 {[%clk 0:02:59]}  Kf8 {[%clk 0:12:17]} 63. Rf4+ {[%clk 0:03:21]}  Kg8 {[%clk 0:12:03]}
64. Re4 {[%clk 0:01:09]}  Kf8 {[%clk 0:11:48]} 65. Rf4+ {[%clk 0:01:27]}  Kg8 {[%clk 0:12:11]} 66. Rd4 {[%clk 0:00:44]}  Kf8 {[%clk 0:12:09]}
67. a5 {[%clk 0:00:38]}  Rc1 {[%clk 0:09:49]} 68. Rd7 {[%clk 0:00:43]}  Rc4+ {[%clk 0:09:27]} 69. Kf3 {[%clk 0:00:40]}  Rc5 {[%clk 0:09:29]}
70. Rf7+ {[%clk 0:01:02]}  Ke8 {[%clk 0:07:15]} 71. Rxg7 {[%clk 0:00:57]}  Kf8 {[%clk 0:07:02]} 72. Rf7+ {[%clk 0:01:11]}  Kg8 {[%clk 0:07:21]}
73. h6 {[%clk 0:01:36]}  Rh5 {[%clk 0:07:02]} 74. h7+ {[%clk 0:01:56]}  Kh8 {[%clk 0:07:26]} 75. Rf8+ {[%clk 0:02:13]}  Kg7 {[%clk 0:07:50]}
76. Rg8+ {[%clk 0:02:40]} 1-0

[Event "2026 European Womens Championship"]
[Site "Batumi, GE"]
[Date "2026.05.27"]
[Round "3"]
[White "Deak-Sala, Emilia"]
[Black "Manukyan, Tamara"]
[Result "1-0"]
[Board "68"]
[TimeControl "5400+30"]
[WhiteFideId "795615"]
[BlackFideId "13321307"]
[WhiteElo "2086"]
[BlackElo "1707"]
[WhiteTitle "WFM"]
[WhiteClock "0:13:24"]
[BlackClock "0:50:56"]
[Variant "Standard"]

1. e4 {[%clk 1:23:58]}  d5 {[%clk 1:30:57]} 2. exd5 {[%clk 1:24:23]}  Nf6 {[%clk 1:31:25]} 3. d4 {[%clk 1:22:05]}  Nxd5 {[%clk 1:31:50]}
4. Be2 {[%clk 1:17:07]}  Bf5 {[%clk 1:31:45]} 5. c3 {[%clk 1:17:33]}  e6 {[%clk 1:32:04]} 6. Nf3 {[%clk 1:16:25]}  Be7 {[%clk 1:32:20]}
7. h3 {[%clk 1:15:54]}  O-O {[%clk 1:32:43]} 8. Nbd2 {[%clk 1:15:55]}  Nf4 {[%clk 1:32:34]} 9. O-O {[%clk 1:14:52]}  Bd6 {[%clk 1:24:01]}
10. Nc4 {[%clk 1:11:12]}  Nxe2+ {[%clk 1:23:07]} 11. Qxe2 {[%clk 1:11:35]}  Be7 {[%clk 1:21:56]} 12. Bf4 {[%clk 1:03:57]}  Nd7 {[%clk 1:22:04]}
13. Rad1 {[%clk 1:04:08]}  Nb6 {[%clk 1:18:01]} 14. Ne3 {[%clk 0:57:06]}  Nd5 {[%clk 1:15:04]} 15. Bg3 {[%clk 0:57:15]}  Be4 {[%clk 1:09:42]}
16. Ng4 {[%clk 0:48:41]}  Bxf3 {[%clk 1:09:32]} 17. Qxf3 {[%clk 0:49:03]}  c6 {[%clk 1:05:38]} 18. c4 {[%clk 0:46:48]}  Nb6 {[%clk 1:03:45]}
19. b3 {[%clk 0:43:30]}  a5 {[%clk 1:03:33]} 20. Be5 {[%clk 0:40:15]}  a4 {[%clk 1:01:25]} 21. Nh6+ {[%clk 0:36:36]}  gxh6 {[%clk 1:01:19]}
22. Qg3+ {[%clk 0:37:01]}  Bg5 {[%clk 1:01:40]} 23. Bc7 {[%clk 0:36:59]}  Qf6 {[%clk 0:58:55]} 24. f4 {[%clk 0:31:08]}  Nd7 {[%clk 0:59:13]}
25. fxg5 {[%clk 0:31:31]}  Qxg5 {[%clk 0:59:33]} 26. Qc3 {[%clk 0:31:32]}  f6 {[%clk 0:57:29]} 27. Bf4 {[%clk 0:31:27]}  Qg6 {[%clk 0:57:34]}
28. Rd3 {[%clk 0:23:05]}  Kf7 {[%clk 0:56:23]} 29. Rdf3 {[%clk 0:16:45]}  Qe4 {[%clk 0:52:26]} 30. Re3 {[%clk 0:16:43]}  Qg6 {[%clk 0:52:45]}
31. d5 {[%clk 0:16:59]}  Rfe8 {[%clk 0:47:49]} 32. dxe6+ {[%clk 0:14:52]}  Rxe6 {[%clk 0:48:11]} 33. Rxe6 {[%clk 0:15:12]}  Kxe6 {[%clk 0:48:37]}
34. Re1+ {[%clk 0:15:33]}  Kf7 {[%clk 0:48:47]} 35. Qe3 {[%clk 0:15:50]}  Kg7 {[%clk 0:47:26]} 36. Qd4 {[%clk 0:09:19]}  Qf7 {[%clk 0:46:08]}
37. Re3 {[%clk 0:09:28]}  Kh8 {[%clk 0:45:01]} 38. Qe4 {[%clk 0:05:52]}  Rg8 {[%clk 0:39:34]} 39. Re2 {[%clk 0:06:18]}  axb3 {[%clk 0:37:08]}
40. axb3 {[%clk 0:06:44]}  Nc5 {[%clk 0:36:03]} 41. Qe3 {[%clk 0:03:57]}  Qh5 {[%clk 0:35:24]} 42. b4 {[%clk 0:00:34]}  Nd7 {[%clk 0:35:00]}
43. c5 {[%clk 0:30:04]}  Qf5 {[%clk 1:03:58]} 44. Kh2 {[%clk 0:27:17]}  h5 {[%clk 1:03:13]} 45. Bd6 {[%clk 0:27:02]}  Qg5 {[%clk 1:00:10]}
46. Qe6 {[%clk 0:22:16]}  Nf8 {[%clk 0:58:41]} 47. Qf7 {[%clk 0:20:23]}  Qg7 {[%clk 0:50:31]} 48. Qxg7+ {[%clk 0:12:44]}  Kxg7 {[%clk 0:50:41]}
49. Re7+ {[%clk 0:13:13]}  Kg6 {[%clk 0:51:01]} 50. Rxb7 {[%clk 0:13:37]}  Ne6 {[%clk 0:51:24]} 51. b5 {[%clk 0:13:25]}  cxb5 {[%clk 0:51:25]}
52. c6 {[%clk 0:13:03]}  Nd8 {[%clk 0:50:56]} 53. Rb8 {[%clk 0:13:24]} 1-0

[Event "2026 European Womens Championship"]
[Site "Batumi, GE"]
[Date "2026.05.27"]
[Round "3"]
[White "Diasamidze, Lulu"]
[Black "Arakhamia-Grant, Ketevan"]
[Result "0-1"]
[Board "69"]
[TimeControl "5400+30"]
[WhiteFideId "13623818"]
[BlackFideId "13600168"]
[WhiteElo "1924"]
[BlackElo "2306"]
[BlackTitle "GM"]
[WhiteClock "0:15:22"]
[BlackClock "0:01:05"]
[Variant "Standard"]

1. e4 {[%clk 1:30:57]}  c5 {[%clk 1:30:56]} 2. Nf3 {[%clk 1:31:10]}  Nc6 {[%clk 1:31:18]} 3. Bb5 {[%clk 1:31:35]}  d6 {[%clk 1:28:06]}
4. O-O {[%clk 1:25:02]}  Bd7 {[%clk 1:27:53]} 5. c3 {[%clk 1:18:46]}  a6 {[%clk 1:24:59]} 6. Ba4 {[%clk 1:19:09]}  Nf6 {[%clk 1:24:13]}
7. Re1 {[%clk 1:17:07]}  b5 {[%clk 1:20:58]} 8. Bc2 {[%clk 1:16:35]}  e5 {[%clk 1:20:25]} 9. d4 {[%clk 1:13:35]}  Be7 {[%clk 1:04:43]}
10. Bg5 {[%clk 1:10:28]}  cxd4 {[%clk 1:00:19]} 11. cxd4 {[%clk 1:09:52]}  Bg4 {[%clk 1:00:19]} 12. dxe5 {[%clk 1:05:12]}  dxe5 {[%clk 0:57:34]}
13. Nbd2 {[%clk 0:24:40]}  O-O {[%clk 0:57:03]} 14. h3 {[%clk 0:24:59]}  Be6 {[%clk 0:56:49]} 15. Bb3 {[%clk 0:24:22]}  Qd6 {[%clk 0:32:22]}
16. Bxe6 {[%clk 0:22:12]}  Qxe6 {[%clk 0:32:37]} 17. Qb3 {[%clk 0:22:29]}  Qxb3 {[%clk 0:15:56]} 18. Nxb3 {[%clk 0:22:57]}  Rfd8 {[%clk 0:15:56]}
19. a3 {[%clk 0:19:01]}  Rd3 {[%clk 0:14:34]} 20. Nc1 {[%clk 0:18:39]}  Rd7 {[%clk 0:13:36]} 21. Bxf6 {[%clk 0:18:43]}  Bxf6 {[%clk 0:13:10]}
22. Ne2 {[%clk 0:18:39]}  Na5 {[%clk 0:08:40]} 23. Nc3 {[%clk 0:18:28]}  Nc4 {[%clk 0:01:18]} 24. Nd5 {[%clk 0:14:59]}  Rd6 {[%clk 0:01:39]}
25. b3 {[%clk 0:15:09]}  Na5 {[%clk 0:01:33]} 26. Rab1 {[%clk 0:14:57]}  Rc8 {[%clk 0:01:26]} 27. Nxe5 {[%clk 0:12:34]}  Rc2 {[%clk 0:00:37]}
28. Ng4 {[%clk 0:12:28]}  Bd8 {[%clk 0:00:40]} 29. Rbd1 {[%clk 0:12:03]}  Kf8 {[%clk 0:00:35]} 30. e5 {[%clk 0:11:47]}  Rd7 {[%clk 0:00:47]}
31. b4 {[%clk 0:09:51]}  Nc6 {[%clk 0:00:36]} 32. Nge3 {[%clk 0:02:44]}  Ra2 {[%clk 0:00:57]} 33. Nf4 {[%clk 0:02:46]}  Rxd1 {[%clk 0:00:35]}
34. Rxd1 {[%clk 0:03:16]}  Ke8 {[%clk 0:00:37]} 35. e6 {[%clk 0:03:28]}  Bg5 {[%clk 0:00:41]} 36. Nfd5 {[%clk 0:03:22]}  fxe6 {[%clk 0:00:44]}
37. Nc7+ {[%clk 0:02:55]}  Ke7 {[%clk 0:01:09]} 38. Re1 {[%clk 0:00:51]}  Rxa3 {[%clk 0:00:51]} 39. Ng4 {[%clk 0:00:36]}  Nd4 {[%clk 0:00:36]}
40. Rd1 {[%clk 0:00:35]}  Nc6 {[%clk 0:00:36]} 41. Re1 {[%clk 0:00:32]}  Bd2 {[%clk 0:28:39]} 42. Re4 {[%clk 0:27:49]}  h5 {[%clk 0:16:41]}
43. Ne3 {[%clk 0:26:21]}  Bxe3 {[%clk 0:15:31]} 44. fxe3 {[%clk 0:24:45]}  e5 {[%clk 0:14:07]} 45. Rh4 {[%clk 0:21:09]}  g6 {[%clk 0:12:24]}
46. g4 {[%clk 0:20:51]}  hxg4 {[%clk 0:11:07]} 47. Rxg4 {[%clk 0:20:57]}  Kf7 {[%clk 0:08:21]} 48. Rh4 {[%clk 0:18:49]}  Rxe3 {[%clk 0:06:32]}
49. Nxa6 {[%clk 0:19:02]}  Nd4 {[%clk 0:06:18]} 50. Kf2 {[%clk 0:18:17]}  Re2+ {[%clk 0:04:47]} 51. Kf1 {[%clk 0:18:46]}  Rb2 {[%clk 0:03:43]}
52. Rh7+ {[%clk 0:18:42]}  Kf6 {[%clk 0:03:54]} 53. h4 {[%clk 0:16:16]}  e4 {[%clk 0:01:02]} 54. Rd7 {[%clk 0:15:46]}  Nf5 {[%clk 0:00:54]}
55. Nc7 {[%clk 0:15:12]}  e3 {[%clk 0:01:00]} 56. Ke1 {[%clk 0:15:22]}  Nxh4 {[%clk 0:01:05]} 0-1

[Event "2026 European Womens Championship"]
[Site "Batumi, GE"]
[Date "2026.05.27"]
[Round "3"]
[White "Maisuradze, Nino"]
[Black "Kalyoncu, Beren"]
[Result "1-0"]
[Board "70"]
[TimeControl "5400+30"]
[WhiteFideId "13601717"]
[BlackFideId "51608383"]
[WhiteElo "2198"]
[BlackElo "1840"]
[WhiteTitle "WGM"]
[BlackTitle "WCM"]
[WhiteClock "0:01:42"]
[BlackClock "0:01:09"]
[Variant "Standard"]

1. d4 {[%clk 1:28:56]}  d5 {[%clk 1:30:50]} 2. c4 {[%clk 1:28:53]}  dxc4 {[%clk 1:31:10]} 3. Nf3 {[%clk 1:29:21]}  Nf6 {[%clk 1:31:29]}
4. e3 {[%clk 1:29:49]}  e6 {[%clk 1:31:40]} 5. Bxc4 {[%clk 1:30:16]}  c5 {[%clk 1:32:00]} 6. O-O {[%clk 1:30:41]}  a6 {[%clk 1:31:47]}
7. Qe2 {[%clk 1:30:50]}  Nbd7 {[%clk 1:26:16]} 8. Rd1 {[%clk 1:29:57]}  b5 {[%clk 1:22:59]} 9. Bd3 {[%clk 1:28:50]}  Bb7 {[%clk 1:19:37]}
10. a4 {[%clk 1:26:42]}  b4 {[%clk 1:16:54]} 11. Nbd2 {[%clk 1:23:23]}  Be7 {[%clk 1:13:31]} 12. Nc4 {[%clk 1:21:32]}  Qc7 {[%clk 1:08:09]}
13. Bd2 {[%clk 1:17:02]}  O-O {[%clk 1:03:54]} 14. Rac1 {[%clk 1:17:25]}  Rac8 {[%clk 0:53:14]} 15. Nce5 {[%clk 1:13:11]}  Qb6 {[%clk 0:48:48]}
16. Nc4 {[%clk 0:49:44]}  Qc7 {[%clk 0:45:01]} 17. b3 {[%clk 0:47:23]}  Be4 {[%clk 0:40:57]} 18. Nce5 {[%clk 0:43:55]}  Bxd3 {[%clk 0:39:36]}
19. Qxd3 {[%clk 0:44:18]}  Qb7 {[%clk 0:38:18]} 20. Ng5 {[%clk 0:33:14]}  h6 {[%clk 0:33:46]} 21. Nxd7 {[%clk 0:33:12]}  Qxd7 {[%clk 0:33:53]}
22. Nf3 {[%clk 0:33:29]}  Qb7 {[%clk 0:31:42]} 23. dxc5 {[%clk 0:32:06]}  Rfd8 {[%clk 0:29:46]} 24. Qb1 {[%clk 0:30:04]}  Bxc5 {[%clk 0:27:39]}
25. Rc4 {[%clk 0:30:11]}  Be7 {[%clk 0:25:37]} 26. Rdc1 {[%clk 0:29:21]}  a5 {[%clk 0:20:50]} 27. Nd4 {[%clk 0:18:53]}  Rxc4 {[%clk 0:16:48]}
28. Rxc4 {[%clk 0:17:38]}  e5 {[%clk 0:15:19]} 29. Nf3 {[%clk 0:18:02]}  Bd6 {[%clk 0:13:42]} 30. e4 {[%clk 0:08:33]}  Rc8 {[%clk 0:11:47]}
31. Rxc8+ {[%clk 0:07:48]}  Qxc8 {[%clk 0:12:12]} 32. Be3 {[%clk 0:06:07]}  Qc6 {[%clk 0:08:36]} 33. Nd2 {[%clk 0:05:36]}  Ng4 {[%clk 0:06:34]}
34. Nc4 {[%clk 0:05:47]}  Nxe3 {[%clk 0:06:45]} 35. fxe3 {[%clk 0:04:50]}  Bc7 {[%clk 0:05:19]} 36. Qd3 {[%clk 0:04:59]}  Kf8 {[%clk 0:03:32]}
37. Qd5 {[%clk 0:04:15]}  Qxd5 {[%clk 0:03:40]} 38. exd5 {[%clk 0:04:44]}  Ke7 {[%clk 0:03:21]} 39. e4 {[%clk 0:03:15]}  f5 {[%clk 0:02:36]}
40. exf5 {[%clk 0:02:43]}  h5 {[%clk 0:01:16]} 41. h3 {[%clk 0:00:42]}  h4 {[%clk 0:00:43]} 42. Kf2 {[%clk 0:28:07]}  Kf6 {[%clk 0:27:59]}
43. d6 {[%clk 0:21:55]}  Bd8 {[%clk 0:25:40]} 44. Ne3 {[%clk 0:21:00]}  e4 {[%clk 0:21:57]} 45. d7 {[%clk 0:10:55]}  Ke5 {[%clk 0:13:46]}
46. Nc2 {[%clk 0:04:12]}  Kd5 {[%clk 0:09:09]} 47. g3 {[%clk 0:01:10]}  Ke5 {[%clk 0:05:37]} 48. g4 {[%clk 0:00:47]}  Kd5 {[%clk 0:03:18]}
49. Ke2 {[%clk 0:00:47]}  Ke5 {[%clk 0:03:18]} 50. Ne3 {[%clk 0:01:00]}  Kd4 {[%clk 0:02:25]} 51. Nc4 {[%clk 0:01:05]}  Kd5 {[%clk 0:00:40]}
52. g5 {[%clk 0:00:39]}  Bxg5 {[%clk 0:00:40]} 53. Nxa5 {[%clk 0:01:06]}  Kd6 {[%clk 0:00:44]} 54. d8=Q+ {[%clk 0:00:49]}  Bxd8 {[%clk 0:01:09]}
55. Nb7+ {[%clk 0:01:42]} 1-0